Cogmind - Beta 9.6 @@@ ROGUE MODE // 2020.06.13 @ 17:51:29 Player: Ether Result: Destroyed by D-53 Grenadier with Mini Grenade Launcher Performance ------------- Evolutions (0) 0 Regions Visited (2) 400 Robots Destroyed (20) 100 Value Destroyed (470) 470 Prototype IDs (2) 40 Alien Tech Used (0) 0 Bonus (0) 0 TOTAL SCORE: 1010 Bonus ------- None Cogmind --------- Core Integrity 0/250 Matter 300/300 Energy 99/100 System Corruption 0% Temperature Cool (0) Movement Core (550) Ox10 Location -10/Mines Parts ------- > --- POWER (1) -------- (None) > --- PROPULSION (2) --- (None) > --- UTILITY (2) ------ Large Storage Unit Large Storage Unit > --- WEAPON (2) ------- (None) > --- INVENTORY (16) --- Light Ion Engine Light Ion Engine Light Nuclear Core VTOL Module VTOL Module VTOL Module VTOL Module Heat Sink Visual Processing Unit Sensor Array Signal Interpreter Rocket Launcher Datajack Mining Laser Proton Bomb Trap Proton Bomb Trap Peak State ------------ > --- POWER ------------ Light Ion Engine > --- PROPULSION ------- Aluminum Leg Aluminum Leg > --- UTILITY ---------- Large Storage Unit Large Storage Unit > --- WEAPON ----------- Rocket Launcher Rocket Launcher > --- INVENTORY -------- Light Ion Engine Light Ion Engine Light Treads Light Treads VTOL Module VTOL Module VTOL Module VTOL Module Heat Sink Visual Processing Unit Sensor Array Signal Interpreter Light Cannon Rocket Launcher Datajack Mining Laser [Rating: 11] Favorites ----------- Power Light Ion Engine Engine Light Ion Engine Power Core Light Nuclear Core Propulsion Aluminum Leg Leg Aluminum Leg Wheel Compact Wheel Utility Large Storage Unit Device Heat Sink Storage Large Storage Unit Weapon Rocket Launcher Energy Gun Medium Laser Ballistic Cannon Light Cannon Launcher Rocket Launcher Special Weapon Mining Laser Special Melee Weapon Datajack Build | -11 -10 -10 ------- Run | Scr Mat Min Slots Evolved . | . . . Power . | . . . Propulsion . | . . . Utility . | . . . Weapon . | . . . Parts Attached 33 | 6 27 . Power 4 | 1 3 . Engine 3 | 1 2 . Core 1 | . 1 . Reactor . | . . . Propulsion 15 | 2 13 . Treads . | . . . Leg 7 | . 7 . Wheel 8 | 2 6 . Hover . | . . . Flight . | . . . Utility 4 | 1 3 . Device 1 | . 1 . Storage 3 | 1 2 . Processor . | . . . Hackware . | . . . Protection . | . . . Artifact . | . . . Weapon 10 | 2 8 . Energy Gun 3 | 2 1 . Energy Cannon . | . . . Ballistic Gun . | . . . Ballistic Cannon 1 | . 1 . Launcher 4 | . 4 . Special Weapon 1 | . 1 . Impact Weapon . | . . . Slashing Weapon . | . . . Piercing Weapon . | . . . Special Melee Weapon 1 | . 1 . Unidentified Prototypes . | . . . Parts Lost 10 | . 5 5 Power 2 | . 1 1 Propulsion 4 | . 2 2 Utility . | . . . Weapon 4 | . 2 2 Highest Loss Streak 5 | . 4 5 Average Slot Usage (%) 97 | . 96 100 Engine 12 | . 12 14 Core 1 | . 1 . Leg 19 | . 18 28 Wheel 8 | . 9 . Device 1 | . 1 . Storage 25 | . 25 28 Energy Gun 7 | . 8 . Ballistic Cannon 2 | . 3 . Launcher 15 | . 14 28 Special Weapon 1 | . 1 . Naked Turns . | . . . Heaviest Build 43 | 10 43 43 Greatest Support 26 | 26 26 20 Greatest Overweight (x) 13 | . 13 10 Average Overweight (x) 1 | . 1 2 Largest Inventory Capacity 16 | 6 16 16 Average Capacity 14 | 5 14 16 Most Carried 16 | 6 16 16 Average Carried 13 | 4 13 15 Final Capacity 16 | 6 16 16 Final Carried 16 | 6 16 16 Class Distribution -------------------- 100% | Mutant Dominant Class ---------------- Mutant | -10/Materials Mutant | -10/Mines Resources | -11 -10 -10 ----------- Run | Scr Mat Min Matter Collected 745 | 260 456 29 Remotely . | . . . Salvage Created 464 | . 464 . Parts 39 | . 39 . Haulers Intercepted . | . . . Recyclers Shooed . | . . . Parts Field Recycled . | . . . Retrieved Matter . | . . . Parts Self-Destructed . | . . . Prevented . | . . . Kills | -11 -10 -10 ------- Run | Scr Mat Min Combat Hostiles Destroyed 15 | . 15 . Guns 4 | . 4 . Cannons 8 | . 8 . AOE 3 | . 3 . Classes Destroyed 5 | . 5 . Worker 1 | . 1 . Recycler 2 | . 2 . Watcher 2 | . 2 . Swarmer 6 | . 6 . Grunt 9 | . 9 . Best Kill Streak 3 | . 3 . Combat Bots Only 3 | . 3 . Max Kills in Single Turn 2 | . 2 . Gunslinging . | . . . Exploded 1 | . 1 . Melee . | . . . Uniques/NPCs Destroyed . | . . . Combat | -11 -10 -10 -------- Run | Scr Mat Min Damage Taken 1281 | . 891 390 Core 256 | . 181 75 Absorbed by Shields . | . . . Core Remaining (%) 100 | 100 . . Volleys Fired 64 | . 64 . Largest 2 | . 2 . Hottest 135 | . 135 . Shots Fired 111 | . 111 . Gun 59 | . 59 . Cannon 38 | . 38 . Launcher 8 | . 8 . Special 6 | . 6 . Kinetic 38 | . 38 . Thermal 65 | . 65 . Explosive 8 | . 8 . Electromagnetic . | . . . Robot Hit Streak 13 | . 13 . Robot Miss Streak 5 | . 5 . Penetration Max . | . . . Secondary Targets . | . . . Shots Hit Robots 70 | . 70 . Core Hits 29 | . 29 . Critical Hits 1 | . 1 . Critical Kills . | . . . Critical Parts Destroyed 1 | . 1 . Melee Attacks . | . . . Impact . | . . . Slashing . | . . . Piercing . | . . . Sneak Attacks . | . . . Combat Hostiles . | . . . Follow-up Attacks . | . . . Damage Inflicted 1307 | . 1307 . Guns 402 | . 402 . Cannons 448 | . 448 . Explosions 409 | . 409 . Melee . | . . . Ramming . | . . . Kinetic 448 | . 448 . Thermal 450 | . 450 . Explosive 409 | . 409 . Electromagnetic . | . . . Impact . | . . . Slashing . | . . . Piercing . | . . . Highest Corruption . | . . . Average Corruption . | . . . Corruption Purged . | . . . Overload Shots . | . . . Overflow Damage 24 | . 24 . Projectiles 19 | . 19 . Explosions 5 | . 5 . Melee . | . . . Knockbacks 14 | . 14 . Impact . | . . . Kinetic 10 | . 10 . Secondary 4 | . 4 . Self-Inflicted Damage 71 | . 71 . Shots 2 | . 2 . Rammed . | . . . Targets Rammed . | . . . Kicked . | . . . Crushed . | . . . Highest Temperature 283 | . 283 . Average Temperature 92 | . 92 . Received Heat Transfer 279 | . 279 . Effects 1 | . 1 . Interference 1 | . 1 . Siege Activations . | . . . Robots Corrupted . | . . . Combat Hostiles . | . . . Parts Fried . | . . . Impact Corruptions . | . . . Robots Melted . | . . . Combat Hostiles . | . . . Parts Melted 3 | . 3 . Heat Transferred 1237 | . 1237 . Parts Sabotaged . | . . . Parts Stolen . | . . . Parts Stripped . | . . . Power Chain Reactions . | . . . Missiles Intercepted . | . . . Alert | -11 -10 -10 ------- Run | Scr Mat Min Peak Influence 205 | . 205 33 Average Influence 55 | . 59 31 Maximum Alert Level 1 | . 1 . Low Security (%) 96 | 100 96 100 Level 1 3 | . 3 . Level 2 . | . . . Level 3 . | . . . Level 4 . | . . . Level 5 . | . . . High Security . | . . . Max Security . | . . . Squads Dispatched 1 | . 1 . Investigation . | . . . Extermination . | . . . Reinforcement 1 | . 1 . Assault . | . . . Garrison . | . . . Intercept . | . . . Construction Impeded . | . . . Haulers Reinforced . | . . . Stealth | -11 -10 -10 --------- Run | Scr Mat Min Distress Signals . | . . . Communications Jammed . | . . . Distress Signals . | . . . Times Spotted 26 | . 24 2 Peak Tracking Total 3 | . 3 2 Tactical Retreats 3 | . 3 . Traps | -11 -10 -10 ------- Run | Scr Mat Min Traps Triggered . | . . . Indirectly . | . . . Trap Hack Attempts . | . . . Triggered . | . . . Disarmed . | . . . Reprogrammed . | . . . Reused . | . . . Traps Extracted . | . . . Installed . | . . . Triggered . | . . . Machines | -11 -10 -10 ---------- Run | Scr Mat Min Machines Disabled 2 | . 2 . Max in Single Turn 1 | . 1 . Machines Sabotaged . | . . . Garrisons Compromised . | . . . Overloaded Fab Kills . | . . . Fab Network Shutdowns . | . . . Hacking | -11 -10 -10 --------- Run | Scr Mat Min Machines Accessed 9 | . 9 . Terminals 7 | . 7 . Fabricators . | . . . Repair Stations 1 | . 1 . Recycling Units 1 | . 1 . Scanalyzers . | . . . Garrison Access . | . . . Total Hacks 28 | . 28 . Successful 17 | . 17 . Failed 11 | . 11 . Catastrophic 1 | . 1 . Database Lockouts . | . . . Manual 9 | . 9 . Terminals 21 | . 21 . Fabricators . | . . . Repair Stations 5 | . 5 . Recycling Units 2 | . 2 . Scanalyzers . | . . . Garrison Access . | . . . Terminal Hacks 12 | . 12 . Record 1 | . 1 . Robot Analysis 1 | . 1 . Prototype ID Bank 1 | . 1 . Branch Access Points 1 | . 1 . Locate Traps 3 | . 3 . Transport Status 1 | . 1 . Hauler Manifests 1 | . 1 . Registered Components 1 | . 1 . Zone Layout 2 | . 2 . Fabricator Hacks . | . . . Repair Station Hacks 4 | . 4 . Scan Component 2 | . 2 . Repair 2 | . 2 . Recycling Unit Hacks 1 | . 1 . Retrieve Components 1 | . 1 . Scanalyzer . | . . . Garrison Access Hacks . | . . . Unauthorized Hacks . | . . . Terminals . | . . . Fabricators . | . . . Repair Stations . | . . . Recycling Units . | . . . Scanalyzers . | . . . Garrison Access . | . . . Data Cores Recovered . | . . . Used . | . . . Hacking Detections 8 | . 8 . Full Trace Events . | . . . Feedback Events . | . . . Feedback Blocked . | . . . Robot Schematics Acquired . | . . . Robots Built . | . . . Matter . | . . . Time . | . . . Total Robot Build Rating . | . . . Part Schematics Acquired . | . . . Parts Built . | . . . Matter . | . . . Time . | . . . Total Part Build Rating . | . . . Parts Repaired 2 | . 2 . Time 58 | . 58 . Parts Recycled . | . . . Recycled Matter . | . . . Retrieved Matter . | . . . Retrieved Components 6 | . 6 . Parts Scanalyzed . | . . . Part Schematics Acquired . | . . . Parts Damaged . | . . . Bothacking | -11 -10 -10 ------------ Run | Scr Mat Min Used RIF Installer . | . . . Robots Hacked . | . . . Non-combat . | . . . Combat . | . . . Robot Hacks Applied . | . . . Relay Couplers Released . | . . . Robots Rewired . | . . . Allies Hacked . | . . . Hacks Repelled . | . . . Allies | -11 -10 -10 -------- Run | Scr Mat Min Total Allies . | . . . Largest Group . | . . . Highest-Rated Group . | . . . Highest-Rated Ally . | . . . Total Orders . | . . . Ally Attacks . | . . . Total Damage . | . . . Kills . | . . . Allies Corrupted . | . . . Allies Melted . | . . . Intel | -11 -10 -10 ------- Run | Scr Mat Min Robot Analysis Total 1 | . 1 . Derelict Logs Recovered . | . . . Drone Launches . | . . . Drone Recoveries . | . . . Exploration | -11 -10 -10 ------------- Run | Scr Mat Min Turns Passed 1975 | 63 1774 138 Spaces Moved 1044 | 65 905 74 Core 17 | 14 2 1 Treads . | . . . Legs 546 | . 473 73 Wheels 481 | 51 430 . Hover . | . . . Flight . | . . . Fastest Speed 50 | 50 90 150 Average Speed 135 | 74 136 184 Slowest Speed 700 | 90 700 550 Overloaded Moves . | . . . Propulsion Burnouts . | . . . Robots Hopped . | . . . Cave-ins Triggered . | . . . Exploration Rate (%) 41 | 4 98 21 Regions Visited 2 Branch Regions 1 Pre-discovered Areas . | . . . Known Exits Taken 1 | . 1 . Unknown Exits Taken 1 | 1 . . Scrap Searched . | . . . Spaces Dug . | . . . Terrain Destroyed 48 | . 48 . Melee . | . . . Projectile 4 | . 4 . AOE 44 | . 44 . Actions | -11 -10 -10 --------- Run | Scr Mat Min Total 1477 | 77 1319 81 Wait 283 | . 283 . Move 1042 | 64 904 74 Hop . | . . . Pick Up 34 | 7 25 2 Fast Attach 10 | 5 5 . Attach 3 | 1 2 . Detach . | . . . Swap 20 | . 20 . Drop 18 | . 16 2 Fire 64 | . 64 . Melee . | . . . Ram . | . . . Kick . | . . . Crush . | . . . Escape Stasis . | . . . Rewire 3 | . . 3 Trap . | . . . Miscellaneous . | . . . Route ------- -11/Scrapyard -10/Materials (discovered 5 exits: [*Mat x3] / *Min x2) -10/Mines (discovered 2 exits: [*Mat x2]) History --------- Turn | Location | Event 3 | -11/Scrapyard | Discovered new exit (range 15) 64 | -11/Scrapyard | Entered Materials 119 | -10/Materials | Discovered new exit (range 9) 181 | -10/Materials | Discovered new exit (range 11) 306 | -10/Materials | Build established: Mutant 337 | -10/Materials | Identified exit to Mines 632 | -10/Materials | Discovered new exit (range 16) 737 | -10/Materials | Lost 4 parts (1p2n1w) 757 | -10/Materials | Core integrity fell below 50% 1231 | -10/Materials | Discovered new exit (range 10) 1616 | -10/Materials | Repaired Rocket Launcher 1646 | -10/Materials | Repaired Mining Laser 1838 | -10/Materials | Entered Mines 1839 | -10/Mines | Assembled infested the area 1883 | -10/Mines | Found a hidden stash of uninstalled traps 1958 | -10/Mines | Discovered new exit (range 12) 1970 | -10/Mines | Discovered new exit (range 10) 1975 | -10/Mines | Core integrity fell below 20% 1976 | -10/Mines | Destroyed by D-53 Grenadier with Mini Grenade Launcher Last Messages --------------- squad. 01846_ Attempting to rewire R-06 Scavenger. 01846_ R-06 Scavenger is broken beyond repair. 01847_ Attempting to rewire R-06 Scavenger. 01847_ R-06 Scavenger is broken beyond repair. 01848_ Attempting to rewire R-06 Scavenger. 01848_ R-06 Scavenger is broken beyond repair. 01883_ A stash of uninstalled traps is hidden here! 01895_ Dropped Lgt. Treads. 01898_ Acquired Proton Bomb Trap. 01958_ Acquired 29 matter. 01958_ EXIT=FOUND 01966_ K-01 Serf destroyed. 01970_ EXIT=FOUND 01970_ K-01 Serf destroyed. 01970_ Rocket Launcher destroyed. 01972_ Aluminum Leg destroyed. 01972_ Lgt. Ion Engine destroyed. 01974_ Aluminum Leg destroyed. 01974_ U-05 Engineer lays Concrete. Map ----- +----------------------------------------------------+ | | | ?????????????????????????????????????? | | ?????????????????????????????????????? | | ?????????????????????????????????????? | | ?????????????????????????????????????? | | ?????????????????????????????????????? | | ?????????????????????????????????????? | | ?????????????????????????????????????? | | ?????????????????????????????????????? | | ?????????????????????????????????????? | | ?????????????????????????????????????? | | ?????????????????????????????????????? | | ?????????????????????????????????????? | | ?????????????????????????????????????? | | ?????????####????????????????????????? | | ?????????# ####????????????????????? | | ?????????? ##???????????????????? | | ??????????? < ####????????????????? | | ??????????? ##???????????????? | | ???????????? # ????????????????? | | ???????????## # #????????????????? | | ??????????## # # #????????????????? | | ??????##### d##???????????????? | | ????### d #???????????????? | | ????# ##?#####????????? | | ????# @ ### ##???????? | | ????# < #???????? | | ????##### =%u " " #???????? | | ????????### ## t #???????? | | ??????????## # # #???????? | | ???????????###### #### # ##??????? | | ????????????????###????# ##?????? | | ???????????????????????## ##????? | | ????????????????????????### #####? | | ??????????????????????????### #? | | ????????????????????????????# #### #? | | ????????????????????????????# #??# #? | | ????????????????????????????# #### ## | | ????????????????????????????# | | ????????????????????? ####### | | ??????????????????? ?? #?????# | | ???????????????????????????#####?????# | | ?????????????????????????????????????? | | ?????????????????????????????????????? | | ????????????????????????????????????## | | ?????????????????????????????????#### | | ????????????????????????????????## | | ????????????????????????????????# | | ????????????????????????????????# | | ????????????????????????????????# | +----------------------------------------------------+ Best States ------------- Heat Dissipation 35 Energy Generation 14 Energy Capacity 250 Matter Stores 300 Matter Capacity 300 Sight Range 16 Terrain Scan Density 10 Evasion (%) 44 Item Schematics ----------------- None Robot Schematics ------------------ None Fabricated ------------ Nothing Alien Tech Used ----------------- None Achievements -------------- None Challenges ------------ None Game ------ Seed AluminumForceWarhead Manual? 0 Play Time 00:21:21 Cumulative 13.2 hours Start 2020.06.13 @ 17:26:04 End 2020.06.13 @ 17:51:29 Sessions 1 Manual Loads 0 Difficulty Rogue Special Mode None Game No. 37 Rogue 37 Adventurer 0 Explorer 0 Win Type - Total 0 Types 0/0/0/0/0/0/0 Lore% 18 Gallery% 23 Achievement% 15 Wizard Run 0 Options --------- ASCII 0 Keyboard 0 Movement Numpad Keybinds 0 Fullscreen 1 Font 18/SmallcapsGlow Map View 76x50 Tactical HUD 1 Map Filters NONE Filters NONE Steam 1 RUN: 15f639c2-882d-4bf6-8c50-52aaeb836973